bitfinex/quotes_SOLUSD_20240718
["timestamp","ask_amount","ask_price","bid_price","bid_amount"]
[1721328040518,6.3963,156.34,156.31,45.0]
[1721328041185,20.0,156.33,156.31,45.0]
[1721328041386,6.396,156.35,156.31,51.3973]
[1721328041810,6.3959,156.35,156.31,51.3975]
[1721328041992,6.3963,156.34,156.31,45.0]
[1721328042194,15.9852,156.4,156.31,45.0]
[1721328042390,6.3961,156.35,156.31,6.3973]
[1721328042607,6.3961,156.35,156.3,45.0]
[1721328042608,6.3961,156.35,156.32,45.0]
[1721328042794,26.3963,156.34,156.3,51.3978]
[1721328043011,20.0,156.34,156.31,6.3973]
[1721328043218,6.3953,156.37,156.32,45.0]
[1721328043631,6.3947,156.38,156.33,15.9915]
[1721328043829,6.3947,156.38,156.34,45.0]
[1721328044000,6.3951,156.37,156.34,45.0]
[1721328044430,6.3948,156.38,156.34,45.0]
[1721328044619,13.7827595,156.41,156.34,45.0]
[1721328044620,6.67507655,156.41,156.34,60.9898]
[1721328044810,6.3926,156.44,156.35,1.27869152]
[1721328045007,6.3926,156.44,156.34,105.3498]
[1721328045008,6.3926,156.43,156.39,15.9852]
[1721328045212,6.3926,156.43,156.4,46.27854747]
[1721328046016,15.9779,156.47,156.4,46.27854747]
[1721328046504,6.3933,156.42,156.39,45.0]
[1721328047735,20.0,156.41,156.39,45.0]
[1721328048033,20.0,156.41,156.38,51.3946]
[1721328048525,20.0,156.41,156.39,7.67282123]
[1721328048732,20.0,156.42,156.4,45.0]
[1721328049520,20.0,156.42,156.39,45.0]
[1721328049907,26.3931,156.42,156.39,45.0]
[1721328050842,6.3937,156.41,156.39,45.0]
[1721328051034,20.0,156.42,156.34,22.3858]
[1721328051355,31.9572,156.46,156.34,22.3858]
[1721328051356,6.3947,156.38,156.34,22.3858]
[1721328051525,20.0,156.45,156.34,15.9898]
[1721328051526,6.3959,156.35,156.34,15.9898]
[1721328051731,6.3955,156.36,156.32,6.3971]
[1721328052232,6.396,156.35,156.3,37.4409]
[1721328052424,6.396,156.35,156.3,31.0434]
[1721328052739,6.3956,156.36,156.31,6.3971]
[1721328052939,20.0,156.35,156.31,6.3971]
[1721328053440,20.0,156.35,156.27,15.9973]
[1721328053630,6.397,156.33,156.29,6.3983]
[1721328054134,6.3973,156.32,156.27,22.3963]
[1721328054320,26.3976,156.31,156.27,22.3963]
[1721328054523,20.0,156.31,156.27,22.3963]
[1721328054844,20.0,156.31,156.28,6.3987]
[1721328056454,20.0,156.31,156.29,45.0]
[1721328056745,20.0,156.31,156.28,45.0]
[1721328056965,20.0,156.35,156.26,6.3995]
[1721328057248,6.3982,156.3,156.25,13.7394703]
[1721328057547,6.3982,156.3,156.26,6.3995]
[1721328057747,20.0,156.29,156.25,0.8052703]
[1721328058042,6.3995,156.26,156.25,0.8052703]
[1721328058247,20.0,156.26,156.25,0.8052703]
[1721328060739,26.3995,156.26,156.25,0.8052703]
[1721328060941,20.0,156.26,156.25,0.8052703]
[1721328062741,6.398,156.3,156.25,7.2052703]
[1721328062934,6.3988,156.28,156.26,45.0]
[1721328063167,6.3995,156.26,156.25,0.8052703]
[1721328063736,6.3993,156.27,156.25,0.8052703]
[1721328064651,6.3988,156.28,156.25,0.8052703]
[1721328064846,20.0,156.27,156.25,0.8052703]
[1721328068165,6.3995,156.26,156.25,0.8052703]
[1721328068464,26.3995,156.26,156.25,0.8052703]
[1721328071979,20.0,156.26,156.25,0.8052703]
[1721328072970,42.3056,156.26,156.13,42.0307]
[1721328073151,16.0005,156.25,156.15,22.4135]
[1721328073360,36.0005,156.25,156.16,6.4036]
[1721328073562,6.4017,156.21,156.17,6.4032]
[1721328073761,20.0,156.2,156.17,16.0077]
[1721328074068,20.0,156.2,156.17,22.4109]
[1721328074466,20.0,156.2,156.18,6.4027]
[1721328074668,20.0,156.21,156.19,45.0]
[1721328074870,26.4017,156.21,156.18,45.0]
[1721328076677,20.0,156.21,156.18,45.0]
[1721328076868,22.6154,156.3,156.2,21.5836]
[1721328077063,6.4008,156.23,156.21,45.0]
[1721328077260,6.4004,156.24,156.21,45.0]
[1721328078066,6.4,156.25,156.21,45.0]
[1721328078370,20.0,156.24,156.21,51.4016]
[1721328079678,6.3996,156.26,156.22,6.4011]
[1721328079866,22.67529215,156.29,156.23,45.0]
[1721328080063,6.3998,156.26,156.23,45.0]
[1721328080366,6.4,156.25,156.22,45.0]
[1721328080568,6.4,156.25,156.21,45.0]
[1721328080763,6.4,156.25,156.21,51.4016]
[1721328080970,6.4018,156.21,156.17,16.0074]
[1721328081385,25.22,156.25,156.16,16.6129]
[1721328081690,6.4028,156.18,156.14,22.4148]
[1721328081868,6.4025,156.19,156.14,22.4148]
[1721328082068,22.88786073,156.27,156.17,16.0071]
[1721328082275,22.88786073,156.27,156.15,41.8476]
[1721328082276,6.3993,156.27,156.15,41.8476]
[1721328082483,6.3997,156.26,156.21,22.4047]
[1721328083162,15.9955,156.3,156.22,6.4011]
[1721328083378,15.9955,156.3,156.23,45.0]
[1721328083778,6.3999,156.26,156.23,45.0]
[1721328084381,20.0,156.25,156.23,45.0]
[1721328084583,26.4001,156.25,156.21,16.0032]
[1721328084762,26.4001,156.25,156.21,23.68485839]
[1721328084967,20.0,156.25,156.22,51.4012]
[1721328085272,20.0,156.25,156.24,6.4004]
[1721328085486,15.9925,156.33,156.24,6.4004]
[1721328085681,6.3984,156.29,156.25,45.0]
[1721328086068,6.67750614,156.32,156.25,45.0]
[1721328086286,6.67750614,156.32,156.25,67.3995]
[1721328086593,6.67750614,156.32,156.25,60.9996]
[1721328086781,6.3984,156.29,156.25,60.9996]
[1721328088800,6.3979,156.3,156.25,60.9996]
[1721328088996,20.0,156.29,156.25,60.9996]
[1721328089371,20.0,156.29,156.25,67.3993]
[1721328089570,26.3984,156.29,156.25,67.3993]
[1721328092023,6.3989,156.28,156.25,60.9996]
[1721328092366,6.3992,156.27,156.25,45.0]
[1721328092571,6.3992,156.27,156.24,45.0]
[1721328092766,20.0,156.26,156.14,32.0217]
[1721328092994,6.4018,156.21,156.16,22.412]
[1721328093398,6.402,156.2,156.16,22.412]
[1721328094272,16.0014,156.24,156.17,6.4032]
[1721328094469,6.4014,156.22,156.18,6.4027]
[1721328095407,20.0,156.26,156.19,6.4023]
[1721328095772,20.0,156.26,156.2,45.0]
[1721328096197,6.4015,156.22,156.18,22.4092]
[1721328096415,6.4008,156.23,156.19,51.4024]
[1721328096596,20.0,156.22,156.19,51.4024]
[1721328096979,20.0,156.22,156.19,45.0]
[1721328097689,26.4012,156.22,156.19,45.0]
[1721328098404,20.0,156.22,156.19,45.0]
[1721328098787,26.4012,156.22,156.19,45.0]
[1721328098982,20.0,156.22,156.19,45.0]
[1721328099179,6.68154656,156.25,156.19,45.0]
[1721328099180,20.0,156.24,156.19,45.0]
[1721328099411,6.402,156.2,156.19,45.0]
[1721328100384,6.402,156.2,156.16,6.4035]
[1721328100908,6.402,156.2,156.17,45.0]
[1721328101099,6.4017,156.21,156.17,51.4032]
[1721328101304,20.0,156.24,156.17,61.0077]
[1721328101696,6.4016,156.21,156.17,67.4107]
[1721328103897,6.4013,156.22,156.17,67.4107]
[1721328104690,6.4009,156.23,156.19,6.4023]
[1721328104890,20.0,156.22,156.19,6.4023]
[1721328105092,20.0,156.22,156.18,6.4027]
[1721328105093,26.4013,156.22,156.18,6.4027]
[1721328105391,26.4013,156.22,156.19,45.0]
[1721328105897,26.4013,156.22,156.18,51.4028]
[1721328106105,6.68154656,156.25,156.24,6.4004]
[1721328106412,6.88986073,156.31,156.2,27.5754]
[1721328106715,25.22,156.29,156.21,45.0]
[1721328106917,15.9972,156.28,156.21,16.0036]
[1721328107115,6.4001,156.25,156.21,22.4051]
[1721328110927,15.9972,156.28,156.22,6.4011]
[1721328110928,6.3996,156.26,156.22,6.4011]
[1721328111619,6.3993,156.27,156.22,6.4011]
[1721328111792,26.3996,156.26,156.22,6.4011]
[1721328112313,20.0,156.26,156.24,6.4003]
[1721328112511,20.0,156.27,156.24,1.27991219]
[1721328112713,6.3988,156.28,156.24,6.4002]
[1721328113026,26.3991,156.27,156.23,67.402]
[1721328113327,6.3991,156.27,156.23,67.402]
[1721328113832,6.3988,156.28,156.24,6.4003]
[1721328114330,20.0,156.27,156.24,6.4003]
[1721328115100,6.3998,156.26,156.23,45.0]
[1721328115305,6.4002,156.25,156.2,37.1779]
[1721328115505,6.3998,156.26,156.22,6.4011]
[1721328115718,6.4,156.25,156.21,51.4013]
[1721328116323,19.0096,156.26,156.22,6.4011]
[1721328116627,39.0093,156.27,156.23,6.4007]
[1721328118199,39.0093,156.27,156.22,22.4038]
[1721328118419,39.0093,156.27,156.23,45.0]
[1721328119853,6.3999,156.26,156.23,45.0]
[1721328120151,39.0092,156.27,156.23,45.0]
[1721328120637,39.0092,156.27,156.23,51.4006]
[1721328120949,6.3998,156.26,156.22,16.0028]
[1721328121119,19.0102,156.25,156.2,27.5754]
[1721328121326,19.01,156.25,156.2,27.5754]
[1721328121520,19.01,156.25,156.21,6.4015]
[1721328121833,19.0096,156.26,156.21,6.4015]
[1721328122733,12.61,156.26,156.21,28.6135]
[1721328122940,20.0,156.27,156.21,28.6135]
[1721328122941,39.0092,156.27,156.23,6.4007]
[1721328123549,32.61,156.27,156.23,6.4007]
[1721328123738,32.61,156.27,156.24,6.4004]
[1721328124056,32.61,156.27,156.23,22.4024]
[1721328124433,26.3993,156.27,156.23,22.4024]
[1721328124957,20.0,156.27,156.23,22.4024]
[1721328125859,20.0,156.27,156.24,45.0]
[1721328126053,6.4025,156.19,156.14,6.4041]
[1721328126370,25.21,156.25,156.12,22.7059]
[1721328126530,6.4026,156.19,156.14,22.4145]
[1721328127260,6.4026,156.19,156.15,6.404]
[1721328127562,6.4021,156.2,156.15,6.404]
[1721328128227,6.4025,156.19,156.15,6.404]
[1721328128628,6.4028,156.18,156.14,16.0104]
[1721328128840,6.4028,156.18,156.14,22.4148]
[1721328129573,6.4025,156.19,156.14,22.4148]
[1721328129757,6.4025,156.19,156.15,45.0]
[1721328130164,6.4025,156.19,156.15,51.404]
[1721328131731,6.4025,156.19,156.12,22.7059]
[1721328131732,6.4035,156.17,156.12,29.1109]
[1721328132137,6.4039,156.16,156.12,16.2307]
[1721328132473,6.4039,156.16,156.12,6.4051]
[1721328132845,6.4039,156.16,156.12,7.68598547]
[1721328133064,6.4039,156.16,156.11,22.4193]
[1721328134545,15.4238,156.19,156.11,22.4193]
[1721328134546,6.4033,156.17,156.12,6.4052]
[1721328135374,6.4037,156.16,156.12,6.4052]
[1721328136067,6.4037,156.16,156.12,7.68605284]
[1721328136839,15.4238,156.19,156.13,6.4048]
[1721328137096,26.4029,156.18,156.14,45.0]
[1721328137252,6.4017,156.21,156.14,45.0]
[1721328137437,6.68024764,156.22,156.17,6.4032]
[1721328137749,6.4019,156.21,156.16,6.4036]
[1721328137953,6.4021,156.2,156.16,6.4036]
[1721328138264,6.4025,156.19,156.15,22.4135]
[1721328138634,6.402,156.2,156.16,7.68413706]
[1721328138839,6.402,156.2,156.17,45.0]
[1721328139151,6.402,156.2,156.15,22.4134]
[1721328139345,6.402,156.2,156.16,45.0]
[1721328139554,6.402,156.2,156.16,51.4036]
[1721328139741,6.402,156.2,156.16,45.0]
[1721328139939,6.4025,156.19,156.16,45.0]
[1721328140268,6.68024764,156.22,156.16,45.0]
[1721328140477,6.4021,156.2,156.16,45.0]
[1721328143871,22.68364764,156.22,156.14,6.4041]
[1721328144171,6.4028,156.19,156.15,45.0]
[1721328144867,6.4028,156.19,156.15,51.404]
[1721328146372,19.0228,156.19,156.15,51.404]
[1721328147775,12.62,156.19,156.15,51.404]
[1721328148346,12.62,156.19,156.15,51.4039]
[1721328150777,12.62,156.19,156.16,6.4036]
[1721328151150,12.62,156.19,156.15,51.4039]
[1721328151669,19.0225,156.19,156.15,51.4039]
[1721328151865,19.0231,156.18,156.14,16.0109]
[1721328152090,19.0245,156.15,156.11,16.0136]
[1721328152256,19.0241,156.15,156.11,16.0136]
[1721328152663,19.0241,156.15,156.12,1.28089149]
[1721328152967,19.0241,156.15,156.11,22.4192]
[1721328153167,12.62,156.15,156.11,22.4192]
[1721328153656,12.62,156.15,156.12,45.0]
[1721328154469,12.62,156.16,156.12,52.68607612]
[1721328154680,12.62,156.16,156.13,6.4048]
[1721328155264,19.0234,156.17,156.13,7.68560864]
[1721328155468,12.62,156.17,156.14,6.4044]
[1721328155669,12.62,156.18,156.14,6.4044]
[1721328155883,12.62,156.19,156.16,6.4036]
[1721328156088,12.62,156.2,156.17,6.4031]
[1721328156678,12.62,156.21,156.18,16.0068]
[1721328156872,12.62,156.21,156.16,12.62]
[1721328157183,6.402,156.2,156.16,19.0234]
[1721328157383,19.0216,156.21,156.17,51.4031]
[1721328157789,19.0216,156.21,156.17,45.0]
[1721328158995,12.62,156.2,156.17,45.0]
[1721328159489,19.022,156.2,156.17,45.0]
[1721328160597,12.62,156.2,156.17,45.0]
[1721328161288,12.62,156.2,156.17,51.4032]
[1721328162205,12.62,156.21,156.17,61.0078]
[1721328162492,12.62,156.21,156.17,67.4109]
[1721328163370,19.0216,156.21,156.17,67.4109]
[1721328164783,6.4013,156.22,156.18,6.4027]
[1721328164992,6.4012,156.22,156.19,1.28030624]
[1721328165188,6.4012,156.22,156.18,6.4027]
[1721328165489,12.62,156.23,156.18,6.4027]
[1721328165490,12.62,156.23,156.19,7.68250624]
[1721328165684,20.0,156.22,156.19,52.68250624]
[1721328166061,20.0,156.22,156.19,45.0]
[1721328166698,26.4012,156.22,156.19,45.0]
[1721328166993,20.0,156.22,156.19,45.0]
[1721328167992,26.4012,156.22,156.19,45.0]
[1721328168290,20.0,156.22,156.19,45.0]
[1721328168490,6.67557365,156.25,156.21,12.62]
[1721328168690,6.4,156.25,156.22,46.27999768]
[1721328170272,6.3996,156.26,156.22,58.89999768]
[1721328171080,6.4,156.25,156.22,58.89999768]
[1721328171794,6.3997,156.26,156.23,12.62]
[1721328171995,6.3997,156.26,156.24,1.27991525]
[1721328173396,6.4,156.25,156.24,1.27991525]
[1721328173601,6.4005,156.24,156.22,57.62]
[1721328174103,28.6183,156.27,156.22,45.0]
[1721328174403,6.4001,156.25,156.22,45.0]
[1721328176206,6.4001,156.25,156.23,1.28000023]
[1721328176703,6.3996,156.26,156.23,1.28000023]
[1721328177408,6.4001,156.25,156.23,1.28000023]
[1721328177704,6.3997,156.26,156.23,1.28000023]
[1721328178405,6.3997,156.26,156.22,57.62]
[1721328179306,6.3997,156.26,156.22,64.0211]
[1721328180510,6.3997,156.26,156.22,57.62]
[1721328181288,6.3997,156.26,156.23,1.27993813]
[1721328181792,6.4001,156.25,156.22,57.62]
[1721328182315,6.4001,156.25,156.22,45.0]
[1721328182612,6.3996,156.26,156.23,1.27997419]
[1721328184404,6.3992,156.27,156.23,13.89997419]
[1721328184705,6.3992,156.27,156.24,45.0]
[1721328185199,6.3996,156.26,156.24,45.0]
[1721328189695,6.3992,156.27,156.24,45.0]
[1721328190200,6.3996,156.26,156.24,45.0]
[1721328190594,6.3996,156.26,156.23,45.0]
[1721328192606,6.3996,156.26,156.23,57.62]
[1721328194196,6.3996,156.26,156.24,12.62]
[1721328194492,6.3996,156.26,156.25,45.0]
[1721328194921,6.67491478,156.29,156.25,12.62]
[1721328195207,6.3986,156.29,156.26,46.2797307]
[1721328195391,6.67281274,156.33,156.27,13.89964256]
[1721328195596,6.3974,156.32,156.28,57.62]
[1721328195796,6.3974,156.32,156.29,46.27954147]
[1721328196390,6.3975,156.31,156.29,46.27954147]
[1721328196986,6.3975,156.31,156.29,58.89954147]
[1721328197294,6.3975,156.31,156.29,57.62]
[1721328198122,6.3972,156.32,156.29,57.62]
[1721328198318,6.3968,156.33,156.3,1.2794936]
[1721328198487,6.3968,156.33,156.3,13.8994936]
[1721328198687,6.3968,156.33,156.31,57.62]
[1721328198903,6.3968,156.33,156.31,12.62]
[1721328199809,6.3968,156.33,156.32,45.0]
[1721328199998,86.294,156.33,156.16,21.5643]
[1721328200200,6.4025,156.19,156.16,34.1843]
[1721328200508,12.62,156.22,156.16,34.1843]
[1721328200509,6.4029,156.18,156.16,27.6533]
[1721328200818,6.4021,156.2,156.17,12.62]
[1721328201316,6.4012,156.22,156.18,12.62]
[1721328203520,6.4008,156.23,156.19,12.62]
[1721328204019,6.4012,156.22,156.19,12.62]
[1721328204918,6.4012,156.22,156.18,12.62]
[1721328205620,6.4008,156.23,156.18,19.0226]
[1721328205821,6.4013,156.22,156.18,12.62]
[1721328206804,6.4016,156.21,156.18,12.62]
[1721328207621,6.4013,156.22,156.18,19.0227]
[1721328207808,6.4013,156.22,156.18,6.4027]
[1721328208007,6.4013,156.22,156.18,19.0227]
[1721328208331,12.62,156.23,156.17,12.62]
[1721328208528,6.4017,156.21,156.18,45.0]
[1721328208722,19.0211,156.23,156.18,57.62]
[1721328209208,12.62,156.23,156.19,6.4021]
[1721328209407,12.62,156.23,156.2,45.0]
[1721328209626,19.0208,156.23,156.2,45.0]
[1721328211812,6.4008,156.23,156.2,45.0]
[1721328212499,6.4008,156.23,156.19,45.0]
[1721328212913,6.4008,156.23,156.18,35.0295]
[1721328212914,6.4013,156.22,156.18,16.0068]
[1721328213115,6.4016,156.21,156.18,16.0068]
[1721328214209,19.0213,156.22,156.18,16.0068]
[1721328214410,6.4017,156.21,156.17,19.0231]
[1721328214604,6.4017,156.21,156.18,45.0]
[1721328214911,19.0213,156.22,156.18,51.4028]
[1721328215835,19.0209,156.23,156.19,6.4023]
[1721328216035,12.62,156.23,156.2,45.0]
[1721328216739,19.0208,156.23,156.2,45.0]
[1721328217832,6.4012,156.22,156.2,45.0]
[1721328218030,6.4012,156.22,156.13,51.2642]
[1721328218031,6.403,156.18,156.13,16.0115]
[1721328218238,12.62,156.14,156.09,0.8052703]
[1721328218412,12.62,156.12,156.09,0.8052703]
[1721328218617,12.62,156.11,156.09,0.8052703]
[1721328219136,19.0258,156.11,156.09,0.8052703]
[1721328219319,12.62,156.1,156.09,0.8052703]
[1721328220436,6.4058,156.11,156.09,0.8052703]
[1721328222348,21.47876721,156.15,156.09,0.8052703]
[1721328222349,6.4061,156.1,156.09,0.8052703]
[1721328228148,25.26,156.13,156.09,0.8052703]
[1721328228321,6.4059,156.11,156.09,0.8052703]
[1721328228647,25.26,156.13,156.09,0.8052703]
[1721328229350,6.4061,156.1,156.09,0.8052703]
[1721328233142,6.4058,156.11,156.09,0.8052703]
[1721328236041,6.4061,156.1,156.09,0.8052703]
[1721328236765,6.4058,156.11,156.09,0.8052703]
[1721328238360,6.4057,156.11,156.09,0.8052703]
[1721328238574,6.4056,156.12,156.09,0.8052703]
[1721328238769,6.4057,156.11,156.09,0.8052703]
[1721328240083,6.4061,156.1,156.09,0.8052703]
[1721328240277,19.0361,156.1,156.09,0.8052703]
[1721328240588,12.63,156.1,156.09,0.8052703]
[1721328244174,6.4057,156.11,156.09,0.8052703]
[1721328244486,12.13506852,156.15,156.02,16.2504]
[1721328244487,6.4087,156.04,156.02,16.2504]
[1721328244788,19.039,156.03,156.02,16.2504]
[1721328244971,19.039,156.03,155.99,16.0263]
[1721328245279,66.5375,156.08,155.98,15.0671]
[1721328245280,12.63,156.01,155.98,15.0671]
[1721328245467,12.63,156.01,155.99,1.28191028]
[1721328245878,12.63,156.02,155.97,6.6135]
[1721328246172,12.63,156.02,155.97,19.2435]
[1721328247087,12.63,156.02,156.0,6.4099]
[1721328247282,7.69058055,156.04,156.0,16.0253]
[1721328247487,12.63,156.02,156.0,16.0253]
[1721328248375,12.63,156.02,156.0,22.4351]
[1721328248682,12.63,156.03,156.01,6.4098]
[1721328249468,1.28198055,156.05,156.01,6.4098]
[1721328249722,12.63,156.04,156.02,17.30488353]
[1721328249998,12.63,156.05,156.03,6.4089]
[1721328250290,12.63,156.04,156.01,6.4097]
[1721328250980,12.63,156.03,156.01,6.4097]
[1721328251869,7.68998055,156.06,156.02,6.4094]
[1721328252080,20.31998055,156.06,156.02,6.4094]
[1721328252277,20.31998055,156.06,156.01,16.0243]
[1721328252278,6.4082,156.05,156.01,22.434]
[1721328252468,6.4083,156.05,156.01,16.0243]
[1721328252871,6.4083,156.05,156.01,22.4339]
[1721328254470,19.0383,156.05,156.01,22.4339]
[1721328255095,19.0383,156.05,156.01,16.0243]
[1721328255297,6.4086,156.04,156.01,16.0243]
[1721328255485,19.0383,156.05,156.01,16.0243]
[1721328255690,19.0383,156.05,156.01,22.4339]
[1721328255992,19.0379,156.06,156.02,6.4092]
[1721328256179,1.28198055,156.08,155.93,1.1325703]
[1721328256180,12.63,156.04,155.93,0.8052703]
[1721328256380,6.4096,156.02,155.96,12.63]
[1721328256569,19.0399,156.01,155.97,6.4112]
[1721328256972,6.4099,156.01,155.97,22.4394]
[1721328257216,19.0395,156.02,155.97,22.4394]
[1721328257994,12.63,156.01,155.97,16.0282]
[1721328258201,12.63,156.0,155.96,6.4117]
[1721328259077,19.0403,156.0,155.96,6.4117]
[1721328259696,19.0403,156.0,155.95,13.91205346]
[1721328259887,19.0399,156.01,155.96,6.4115]
[1721328260292,19.0411,155.98,155.94,22.4435]
[1721328260477,19.0411,155.98,155.94,16.0311]
[1721328260682,12.63,155.98,155.93,0.8052703]
[1721328260904,6.4114,155.97,155.93,19.8482703]
[1721328261196,12.63,155.98,155.94,6.4127]
[1721328261711,6.4119,155.96,155.93,0.8052703]
[1721328261877,12.63,155.96,155.93,0.8052703]
[1721328262598,19.0415,155.97,155.93,0.8052703]
[1721328262808,19.0415,155.97,155.93,7.2183703]
[1721328263187,19.0415,155.97,155.93,0.8052703]
[1721328263908,12.63,155.99,155.94,6.4126]
[1721328264111,1.28198055,155.98,155.94,6.4126]
[1721328264285,7.69308055,155.98,155.94,6.4126]
[1721328265305,20.32308055,155.98,155.94,6.4126]
[1721328265998,20.32308055,155.98,155.93,29.4675703]
[1721328265999,1.28198055,156.01,155.95,16.0304]
[1721328266179,12.63,156.01,155.96,12.63]
[1721328266384,19.0398,156.01,155.96,19.0417]
[1721328266686,12.63,156.01,155.97,6.4114]
[1721328266887,13.91198055,156.01,155.98,6.4109]
[1721328267276,12.63,156.02,155.98,6.4109]
[1721328267476,7.69208055,156.01,155.97,16.0283]
[1721328267778,20.32208055,156.01,155.97,16.0283]
[1721328267980,20.32208055,156.01,155.93,0.8052703]
[1721328267981,6.4121,155.96,155.93,0.8052703]
[1721328268180,19.0421,155.96,155.93,0.8052703]
[1721328268490,1.28198055,155.99,155.93,0.8052703]
[1721328268810,6.4125,155.95,155.93,0.8052703]
[1721328269208,12.63,155.96,155.93,0.8052703]
[1721328269390,20.32418055,155.96,155.93,0.8052703]
[1721328270514,1.28198055,155.99,155.93,0.8052703]
[1721328270685,6.4122,155.96,155.93,0.8052703]
[1721328271085,1.28198055,155.98,155.93,7.2183703]
[1721328271086,6.4115,155.97,155.93,7.2183703]
[1721328271306,1.28198055,155.96,155.93,7.2183703]
[1721328271805,7.69388055,155.96,155.93,0.8052703]
[1721328272515,6.4127,155.94,155.93,0.8052703]
[1721328273286,22.4445,155.94,155.93,0.8052703]
[1721328273494,6.4127,155.94,155.93,0.8052703]
[1721328279891,13.07662819,155.94,155.93,0.8052703]
[1721328280099,21.95881995,155.94,155.93,0.8052703]
[1721328280510,41.95881995,155.94,155.93,0.8052703]
[1721328284824,6.4127,155.94,155.93,0.8052703]
[1721328286925,1.28198055,155.95,155.93,0.8052703]
[1721328286926,7.69428055,155.95,155.93,0.8052703]
[1721328287125,1.28198055,155.95,155.93,0.8052703]
[1721328287332,6.4124,155.95,155.93,0.8052703]
[1721328287822,6.4127,155.94,155.93,0.8052703]
[1721328288028,7.69398055,155.96,155.93,0.8052703]
[1721328288212,6.4123,155.95,155.93,0.8052703]
[1721328288611,6.4127,155.94,155.93,0.8052703]
[1721328288809,6.4118,155.97,155.93,0.8052703]
[1721328289014,7.69388055,155.96,155.93,0.8052703]
[1721328289227,6.4119,155.96,155.93,0.8052703]
[1721328289405,6.4118,155.97,155.93,0.8052703]
[1721328289922,6.4118,155.97,155.93,7.2182703]
[1721328290228,6.4118,155.97,155.93,0.8052703]
[1721328290528,6.412,155.96,155.93,0.8052703]
[1721328291002,1.28198055,155.98,155.93,0.8052703]
[1721328291208,6.4127,155.94,155.93,0.8052703]
[1721328291606,6.4123,155.95,155.93,0.8052703]
[1721328293103,6.4119,155.96,155.93,0.8052703]
[1721328293309,1.28198055,155.96,155.93,0.8052703]
[1721328294209,23.99752624,155.98,155.93,0.8052703]
[1721328294930,6.4123,155.95,155.93,0.8052703]
[1721328295113,23.99752624,155.98,155.93,0.8052703]
[1721328295434,6.4123,155.95,155.93,0.8052703]
[1721328296133,6.4127,155.94,155.93,0.8052703]
[1721328296834,6.4124,155.95,155.93,0.8052703]
[1721328297010,6.4127,155.94,155.93,0.8052703]
[1721328297210,6.4123,155.95,155.93,0.8052703]
[1721328298713,51.7327,155.94,155.93,0.8052703]
[1721328299031,68.27328549,155.94,155.93,0.8052703]
[1721328299436,34.38192624,155.94,155.93,7.03e-05]
[1721328299748,31.01718895,155.93,155.92,102.76464506]
[1721328299912,115.5991695,155.93,155.92,102.76464506]
[1721328300424,77.6391695,155.93,155.92,102.76464506]
[1721328301526,117.67399574,155.93,155.92,90.85894506]
[1721328303347,162.67399574,155.93,155.92,86.40894506]
[1721328303515,6.4172,155.83,155.82,21.9926]
[1721328303713,16.0391,155.87,155.82,21.9926]
[1721328303714,6.4169,155.84,155.82,21.9926]
[1721328304618,6.4165,155.85,155.82,21.9926]
[1721328304815,25.34,155.89,155.82,21.9926]
[1721328305015,6.4151,155.88,155.84,6.4165]
[1721328305243,25.34,155.92,155.85,6.416]